Cogmind - Beta 16.1 @@@ ROGUE MODE // 2026.02.16 @ 18:57:51 Player: the Result: Self-destructed Performance ------------- Evolutions (1) 500 Regions Visited (2) 400 Robots Destroyed (5) 25 Value Destroyed (196) 196 Prototype IDs (3) 60 Alien Tech Used (0) 0 Bonus (0) 0 TOTAL SCORE: 1181 Bonus ------- None Cogmind --------- Core Integrity 261/400 Matter 300/300 Energy 100/100 System Corruption 0% Temperature Cool (6) Movement Core (450) Ox8 Location -9/Materials Parts ------- > --- POWER (1) -------- (None) > --- PROPULSION (3) --- (None) > --- UTILITY (3) ------ Large Storage Unit Medium Armor Plating > --- WEAPON (2) ------- (None) > --- INVENTORY (15) --- System Shield System Shield System Shield System Shield Peak State ------------ > --- POWER ------------ Ion Engine > --- PROPULSION ------- Light Treads Light Treads Light Treads > --- UTILITY ---------- Large Storage Unit > --- WEAPON ----------- (None) > --- INVENTORY -------- System Shield System Shield System Shield System Shield [Rating: 6] Favorites ----------- Power Ion Engine Engine Ion Engine Propulsion Light Treads Treads Light Treads Utility Large Storage Unit Device Structural Scanner Storage Large Storage Unit Protection Medium Armor Plating Weapon None Build | -11 -10 -9 ------- Run | Yrd Mat Mat Slots Evolved 2 | . . 2 Power . | . . . Propulsion 1 | . . 1 Utility 1 | . . 1 Weapon . | . . . Parts Attached 8 | 3 1 4 Power 2 | 1 . 1 Engine 2 | 1 . 1 Core . | . . . Reactor . | . . . Propulsion 3 | 2 . 1 Treads 3 | 2 . 1 Leg . | . . . Wheel . | . . . Hover . | . . . Flight . | . . . Utility 3 | . 1 2 Device 1 | . 1 . Storage 1 | . . 1 Processor . | . . . Hackware . | . . . Protection 1 | . . 1 Artifact . | . . . Weapon . | . . . Energy Gun . | . . . Energy Cannon . | . . . Ballistic Gun . | . . . Ballistic Cannon . | . . . Launcher . | . . . Special Weapon . | . . . Impact Weapon . | . . . Slashing Weapon . | . . . Piercing Weapon . | . . . Special Melee Weapon . | . . . Unidentified Prototypes . | . . . Parts Lost 5 | . 1 4 Power 1 | . . 1 Propulsion 3 | . . 3 Utility 1 | . 1 . Weapon . | . . . Highest Loss Streak 4 | . 1 4 To Critical Strikes . | . . . Average Backups 3 | 2 3 3 Power . | . 1 . Propulsion 1 | 1 1 . Utility 1 | . 1 3 Weapon . | . . . Tool/Special . | . . . Unused Backups 7 | . 3 4 Power . | . . . Propulsion 2 | . 2 . Utility 5 | . 1 4 Weapon . | . . . Tool/Special . | . . . Average Slot Usage (%) 31 | . 23 50 Engine 3 | . . 9 Treads 22 | . 19 29 Device 2 | . 3 . Storage 3 | . . 10 Peak Build Rating 6 | 3 3 6 Average Rating 2 | 2 1 5 On Entrance 1 | . 3 2 Avg Prop Armor Cover (%) . | . . . Naked Turns 53 | . 53 . Heaviest Build 32 | 5 1 32 Greatest Support 60 | 40 40 60 Greatest Overweight (x) 1 | . . 1 Average Overweight (x) . | . . . Largest Inventory Capacity 15 | 5 5 15 Average Capacity 7 | 5 5 14 Most Carried 5 | 4 5 4 Average Carried 3 | 3 3 3 Final Capacity 15 | 5 5 15 Final Carried 4 | 4 3 4 Class Distribution -------------------- 100% | Mutant Dominant Class ---------------- Mutant | -10/Materials Mutant | -9/Materials Resources | -11 -10 -9 ----------- Run | Yrd Mat Mat Matter Collected 188 | 127 37 24 Remotely . | . . . Salvage Created 72 | . 37 35 Parts 5 | . 3 2 Haulers Intercepted . | . . . Recyclers Shooed . | . . . Parts Field Recycled . | . . . Retrieved Matter . | . . . Parts Self-Destructed . | . . . Prevented . | . . . Parts Restored . | . . . Kills | -11 -10 -9 ------- Run | Yrd Mat Mat Combat Hostiles Destroyed 5 | . 3 2 Melee 5 | . 3 2 Classes Destroyed 1 | . 1 . Grunt 5 | . 3 2 Best Kill Streak 1 | . 1 1 Combat Bots Only 1 | . 1 1 Max Kills in Single Turn 1 | . 1 1 Gunslinging . | . . . Exploded . | . . . Melee 1 | . 1 1 Uniques/NPCs Destroyed . | . . . Combat | -11 -10 -9 -------- Run | Yrd Mat Mat Hostile Shots Fired 74 | . 24 50 Missed 18 | . 5 13 Hits 56 | . 19 37 Melee 3 | . . 3 Projectile 53 | . 19 34 Critical Strikes 2 | . . 2 Damage Taken 719 | . 212 507 Core 159 | . 20 139 Absorbed by Shields . | . . . Core Remaining (%) 96 | 100 92 . Volleys Fired . | . . . Largest . | . . . Hottest . | . . . Shots Fired . | . . . Gun . | . . . Cannon . | . . . Launcher . | . . . Special . | . . . Kinetic . | . . . Thermal . | . . . Explosive . | . . . Electromagnetic . | . . . Robot Hit Streak . | . . . Robot Miss Streak . | . . . Penetration Max . | . . . Secondary Targets . | . . . Shots Hit Robots . | . . . Core Hits 3 | . 2 1 Critical Kills . | . . . Critical Parts Destroyed . | . . . Critical Strikes . | . . . Melee Attacks . | . . . Impact . | . . . Slashing . | . . . Piercing . | . . . Sneak Attacks . | . . . Combat Hostiles . | . . . Follow-up Attacks . | . . . Damage Inflicted 29 | 2 17 10 Guns . | . . . Cannons . | . . . Explosions . | . . . Melee . | . . . Ramming 29 | 2 17 10 Kinetic . | . . . Thermal . | . . . Explosive . | . . . Electromagnetic . | . . . Impact . | . . . Slashing . | . . . Piercing . | . . . Highest Corruption . | . . . Average Corruption . | . . . Corruption Purged . | . . . Corruption Blocked . | . . . Overload Shots . | . . . Overflow Damage . | . . . Projectiles . | . . . Explosions . | . . . Melee . | . . . Knockbacks . | . . . Impact . | . . . Kinetic . | . . . Secondary . | . . . Self-Inflicted Damage . | . . . Shots . | . . . Rammed 34 | 3 29 2 Targets Rammed 39 | 3 32 4 Kicked . | . . . Crushed 5 | . 3 2 Highest Temperature 13 | . . 13 Average Temperature 9 | . . 9 Received Heat Transfer 369 | . 117 252 Siege Activations . | . . . Martial Activations . | . . . Shielding Activations . | . . . Robots Disrupted . | . . . Combat Hostiles . | . . . Robots Corrupted . | . . . Combat Hostiles . | . . . Parts Fried . | . . . Impact Corruptions . | . . . Robots Melted . | . . . Combat Hostiles . | . . . Parts Melted . | . . . Heat Transferred . | . . . Parts Sabotaged . | . . . Parts Stolen . | . . . Parts Stripped . | . . . Power Chain Reactions . | . . . Alert | -11 -10 -9 ------- Run | Yrd Mat Mat Maximum Alert Level . | . . . Low Security (%) 100 | 100 100 100 Level 1 . | . . . Level 2 . | . . . Level 3 . | . . . Level 4 . | . . . Level 5 . | . . . High Security . | . . . Max Security . | . . . Peak Influence 30 | . 30 30 Initial . | . . . Average 4 | . 6 2 Influence Increases 164 | . 114 50 Destroy 0b10 Robot/C 100 | . 60 40 Destroy Leader 20 | . 10 10 Successful Hack 29 | . 29 . Lose Combat Pursuer 15 | . 15 . Influence Decreases 144 | . 114 30 Time Decay 114 | . 104 10 Lost Part 30 | . 10 20 Squads Dispatched 1 | . 1 . Investigation . | . . . Extermination . | . . . Reinforcement 1 | . 1 . Assault . | . . . Garrison . | . . . Intercept . | . . . Searches Triggered . | . . . Construction Impeded . | . . . Haulers Reinforced . | . . . Active Scanning Responses . | . . . Cargo Convoy Interrupts . | . . . Stealth | -11 -10 -9 --------- Run | Yrd Mat Mat Distress Signals 1 | . 1 . Communications Jammed . | . . . Distress Signals . | . . . Times Spotted 13 | . 8 5 Peak Tracking Total 5 | . 3 5 Tactical Retreats 1 | . 1 . Traps | -11 -10 -9 ------- Run | Yrd Mat Mat Traps Triggered 1 | . 1 . Indirectly . | . . . Trap Hack Attempts . | . . . Triggered . | . . . Disarmed . | . . . Reprogrammed . | . . . Reused . | . . . Traps Extracted . | . . . Installed . | . . . Triggered . | . . . Machines | -11 -10 -9 ---------- Run | Yrd Mat Mat Machines Disabled . | . . . Max in Single Turn . | . . . Machines Repaired . | . . . Machines Dismantled . | . . . Machines Sabotaged . | . . . Overloaded Fab Kills . | . . . Hacking | -11 -10 -9 --------- Run | Yrd Mat Mat Machines Accessed 5 | . 5 . Terminals 4 | . 4 . Fabricators . | . . . Repair Stations . | . . . Recycling Units 1 | . 1 . Scanalyzers . | . . . Garrison Access . | . . . Total Hacks 21 | . 21 . Successful 13 | . 13 . Failed 8 | . 8 . Catastrophic 1 | . 1 . Database Lockouts . | . . . Manual 10 | . 10 . Terminals 18 | . 18 . Fabricators . | . . . Repair Stations . | . . . Recycling Units 3 | . 3 . Scanalyzers . | . . . Garrison Access . | . . . Terminal Hacks 8 | . 8 . Robot Analysis 1 | . 1 . Prototype ID Bank 2 | . 2 . Terminal Index 1 | . 1 . Locate Traps 2 | . 2 . Hauler Manifests 1 | . 1 . Registered Components 1 | . 1 . Fabricator Hacks . | . . . Repair Station Hacks . | . . . Recycling Unit Hacks 1 | . 1 . Retrieve Components 1 | . 1 . Scanalyzer . | . . . Garrison Access Hacks . | . . . Unauthorized Hacks 4 | . 4 . Terminals 4 | . 4 . Botnet 3 | . 3 . Operators 1 | . 1 . Fabricators . | . . . Repair Stations . | . . . Recycling Units . | . . . Scanalyzers . | . . . Garrison Access . | . . . Data Cores Recovered . | . . . Used . | . . . Hacking Detections 5 | . 5 . Full Trace Events . | . . . Feedback Events . | . . . Feedback Blocked . | . . . Robot Schematics Acquired . | . . . Robots Built . | . . . Authchips . | . . . Time . | . . . Total Robot Build Rating . | . . . Part Schematics Acquired . | . . . Parts Built . | . . . Authchips . | . . . Time . | . . . Total Part Build Rating . | . . . Part Studies Acquired . | . . . Parts Repaired . | . . . Time . | . . . Parts Recycled . | . . . Recycled Matter . | . . . Retrieved Matter . | . . . Retrieved Components 3 | . 3 . Parts Scanalyzed . | . . . Part Schematics Acquired . | . . . Parts Damaged . | . . . Bothacking | -11 -10 -9 ------------ Run | Yrd Mat Mat Used RIF Installer . | . . . Robots Hacked . | . . . Non-combat . | . . . Combat . | . . . Robot Hacks Applied . | . . . Relay Couplers Released . | . . . Fabnet Peak Effective % . | . . . Robots Rewired . | . . . Allies Hacked . | . . . Hacks Repelled . | . . . Allies | -11 -10 -9 -------- Run | Yrd Mat Mat Total Allies . | . . . Largest Group . | . . . Highest-Rated Group . | . . . Highest-Rated Ally . | . . . Total Orders . | . . . Ally Attacks . | . . . Total Damage . | . . . Kills . | . . . Allies Corrupted . | . . . Allies Melted . | . . . Intel | -11 -10 -9 ------- Run | Yrd Mat Mat Active Infowar (turns) 94 | . 94 . Structural 94 | . 94 . Robot Analysis Total 1 | . 1 . Derelict Logs Recovered . | . . . Drone Launches . | . . . Drone Recoveries . | . . . Exploration | -11 -10 -9 ------------- Run | Yrd Mat Mat Turns Passed 632 | 61 400 171 Spaces Moved 442 | 35 360 47 Core 245 | 8 237 . Treads 197 | 27 123 47 Legs . | . . . Wheels . | . . . Hover . | . . . Flight . | . . . Fastest Speed 50 | 50 50 160 Average Speed 99 | 134 87 165 Slowest Speed 240 | 160 160 240 Overloaded Moves . | . . . Propulsion Burnouts . | . . . Robots Hopped . | . . . Potential Cave-ins . | . . . Cave-ins Triggered . | . . . Exploration Rate (%) 21 | 4 53 7 Regions Visited 2 Branch Regions . Pre-discovered Areas . | . . . Known Exits Taken . | . . . Unknown Exits Taken 2 | 1 1 . Scrap Searched . | . . . Spaces Dug . | . . . Terrain Destroyed . | . . . Melee . | . . . Projectile . | . . . AOE . | . . . Terrain Rammed . | . . . Walls Destroyed . | . . . Machines Disabled . | . . . Actions | -11 -10 -9 --------- Run | Yrd Mat Mat Total 610 | 47 428 135 Wait 99 | . 23 76 Move 440 | 34 359 47 Hop . | . . . Pick Up 13 | 6 3 4 Fast Attach 5 | 2 2 1 Attach 6 | 1 2 3 Detach 2 | . 2 . Swap . | . . . Drop 6 | 1 5 . Fire . | . . . Melee . | . . . Ram . | . . . Kick . | . . . Crush 39 | 3 32 4 Escape Stasis . | . . . Rewire . | . . . Trap . | . . . Miscellaneous . | . . . Route ------- -11/Scrapyard -10/Materials (discovered 2 exits: [*Mat] / [*Sub]) -9/Materials History --------- Turn | Location | Event 19 | -11/Scrapyard | Discovered new exit (range 15) 62 | -11/Scrapyard | Entered Materials 153 | -10/Materials | Discovered new exit (range 8) 305 | -10/Materials | Build established: Mutant 377 | -10/Materials | Discovered new exit (range 16) 462 | -10/Materials | Entered another Materials area 462 | -9/Materials | Evolved 2 slots: Propulsion x1, Utility x1 633 | -9/Materials | Self-destructed Last Messages --------------- GOAL=ESCAPE 00485_ Acquired System Shield. 00501_ T-07 Excavator is excavating. 00590_ Slammed into B-36 Bruiser. 00595_ Critical hit (Burn: +37). 00600_ U-05 Engineer lays Concrete. 00607_ Lgt. Treads destroyed. 00607_ Crushed G-34 Mercenary. 00607_ G-34 Mercenary destroyed. 00608_ Acquired 14 matter. 00616_ Lgt. Treads destroyed. 00622_ Acquired Med. Armor Plating. 00626_ Slammed into G-47 Trooper. 00626_ Ion Engine destroyed. 00628_ Crushed G-47 Trooper. 00628_ G-47 Trooper destroyed. 00629_ Acquired 10 matter. 00631_ Lgt. Treads destroyed. 00632_ Critical hit (Smash). 00632_ Knocked back. Map ----- +----------------------------------------------------+ | ???????????????????##### #??? | | ???????????????????#[[ #??? | | ???????????????????#[[ #??? | | ???????????????????#!! #??? | | ???????????????????#!! #??? | | ???????????????????# #??? | | ???????????????????# #??? | | ???????????????????##### #??? | | ???????????????????????# #??? | | ???????????????????????# #??? | | ???????????????????????# #??? | | ???????????????????????# #??? | | ???????????????????????# #??? | | ????????????????######?# #??? | | ????????????????# # #??? | | ????????????????# # #??? | | ????????????????# #??? | | ????????????????# # # #??? | | ????????????????# ??### #??? | | ???????????????????????# #??? | | ????????????????######## g #??? | | ????????????????# # g #??? | | ????????????????# """ # #??? | | ????????????????# """ b #??? | | ????????????????# """ #%= #??? | | ????????????????# #!@ #??? | | ????????????????# "T" # #??? | | ????????????????######## #??? | | ???????????????????????# #??? | | ???????????????????????# #??? | | ???????????????????????# #??? | | ???????????????????????#u #??? | | ???????????????????????# #??? | | ???????????????????????# ^#??? | | ???????????????????????# #??? | | ???????????????????????#u #??? | | ???????????????????????# #??? | | ???????????????????????# #??? | | ???????????????????????? #??? | | ???????????????????????? #??? | | ???????????????????????? ???? | | ???????????????????????????????? | | ???????????????????????????????? | | ???????????????????????????????? | | ???????????????????????????????? | | ???????????????????????????????? | | ???????????????????????????????? | | ???????????????????????????????? | | ???????????????????????????????? | | ???????????????????????????????? | +----------------------------------------------------+ Best States ------------- Heat Dissipation 28 Energy Generation 10 Energy Capacity 250 Matter Stores 300 Matter Capacity 300 Sight Range 16 Terrain Scan Density 10 Armor Coverage 225 Evasion (%) 50 Recoil Reduction 3 Item Schematics ----------------- None Robot Schematics ------------------ None Fabricated ------------ Nothing Repaired ---------- Nothing Studied --------- None Alien Tech Used ----------------- None Achievements -------------- None Challenges ------------ None Game ------ Seed AssembledImprinterNanovents Manual? 0 Play Time 00:06:07 Cumulative 583.9 hours Start 2026.02.16 @ 18:52:31 End 2026.02.16 @ 18:57:51 Sessions 1 Manual Loads 0 Difficulty Rogue Special Mode None Game No. 329 Rogue 329 Adventurer 0 Explorer 0 Win Type - Total 21 Types 12/0/6/0/0/0/1/2/0/0 Lore% 89 Gallery% 82 Achievement% 70 Wizard Run 0 Options --------- Layout 1 ASCII 0 Keyboard 0 Movement Numpad Keybinds 0 Fullscreen 2 Font 24/Smallcaps Map View 50x40 Zoom Use 0% Tactical HUD 1 Map Filters NONE Filters NONE Steam 1 RUN: b50bf7a7-7e19-4d87-a6f1-06f15f9651e8